fUSD/lending_fUSD_20240331
["ID","MTS","AMOUNT","RATE_DAILY","PERIOD"]
[321129904,1711901496801,-556.5,0.00059726,120]
[321129905,1711901496811,-500.0,0.00059726,120]
[321129906,1711901496821,-1383.62,0.00059726,120]
[321129907,1711901496831,-500.0,0.00059726,120]
[321129908,1711901496841,-3025.45,0.00059726,120]
[321129909,1711901496851,-5933.46,0.00059726,120]
[321129910,1711901496861,-554.92,0.00059726,120]
[321129911,1711901496872,-4835.56,0.00059726,120]
[321129912,1711901496882,-1114.13,0.00059726,120]
[321129913,1711901496891,-1551.31,0.00059726,120]
[321129914,1711901496902,-500.0,0.00059726,120]
[321129915,1711901496913,-500.0,0.00059726,120]
[321129916,1711901496923,-1225.51,0.00059726,120]
[321129917,1711901496933,-500.0,0.00059726,120]
[321129918,1711901496943,-1642.24,0.00059726,120]
[321129919,1711901496953,-1400.86,0.00059726,120]
[321129920,1711901496963,-5107.76,0.00059726,120]
[321129921,1711901496973,-7108.28,0.00059726,120]
[321129922,1711901496983,-500.0,0.00059726,120]
[321129923,1711901496993,-500.0,0.00059726,120]
[321129924,1711901497002,-1267.36,0.00059726,120]
[321129925,1711901497012,-1487.37,0.00059726,120]
[321129926,1711901497021,-977.83,0.00059726,120]
[321129927,1711901497030,-2308.38,0.00059726,120]
[321129928,1711901497039,-1843.78,0.00059726,120]
[321129929,1711901497049,-500.0,0.00059726,120]
[321129930,1711901497058,-500.0,0.00059726,120]
[321129931,1711901497068,-500.0,0.00059726,120]
[321129932,1711901497077,-500.0,0.00059726,120]
[321129933,1711901497087,-1933.04,0.00059726,120]
[321129934,1711901497097,-500.0,0.00059726,120]
[321129935,1711901497107,-925.52,0.00059726,120]
[321129936,1711901497117,-4054.58,0.00059726,120]
[321129937,1711901497127,-3182.14,0.00059726,120]
[321129938,1711901497137,-500.0,0.00059726,120]
[321129939,1711901497146,-1284.39,0.00059726,120]
[321129940,1711901497155,-9137.65,0.00059726,120]
[321129941,1711901497165,-731.7,0.00059726,120]
[321129942,1711901497175,-9984.85,0.00059726,120]
[321129943,1711901497185,-505.42,0.00059726,120]
[321129944,1711901497194,-974.58,0.00059726,120]
[321129945,1711901497204,-129999.999999,0.0005977,120]
[321129946,1711901497213,-314.094546,0.0005977,120]
[321129947,1711901497223,-999.0,0.000598,2]
[321129948,1711901497232,-166.66666667,0.00059865,120]
[321129949,1711901497242,-5000.0,0.00059885,90]
[321129950,1711901497252,-939.72186534,0.000599,2]
[321129951,1711901497261,-162.63,0.00059945,120]
[321129952,1711901497271,-151.0,0.00059973,120]
[321129953,1711901497282,-434.4777439,0.0005998,120]
[321129954,1711901497291,-1474.18,0.00059999,120]
[321129955,1711901497300,-556.04,0.00059999,120]
[321129956,1711901497310,-956.39,0.00059999,120]
[321129957,1711901497320,-882.73,0.00059999,120]
[321129958,1711901497329,-859.93,0.00059999,120]
[321129959,1711901497339,-737.17,0.00059999,120]
[321129960,1711901497349,-759.11,0.00059999,120]
[321129961,1711901497359,-500.0,0.00059999,120]
[321129962,1711901497369,-880.58,0.00059999,120]
[321129963,1711901497378,-509.81,0.00059999,120]
[321129964,1711901497387,-500.0,0.00059999,120]
[321129965,1711901497397,-500.0,0.00059999,120]
[321129966,1711901497406,-583.26,0.00059999,120]
[321129967,1711901497416,-502.35,0.00059999,120]
[321129968,1711901497425,-239.34,0.00059999,120]
[321129969,1711901497435,-500.0,0.00059999,120]
[321129970,1711901497444,-500.0,0.00059999,120]
[321129971,1711901497453,-780.08,0.00059999,120]
[321129972,1711901497463,-528.28,0.00059999,120]
[321129973,1711901497473,-500.0,0.00059999,120]
[321129974,1711901497482,-500.0,0.00059999,120]
[321129975,1711901497491,-644.63175783,0.00059999,120]
[321129976,1711901497501,-451.91,0.00059999,120]
[321129977,1711901497511,-860.04,0.00059999,120]
[321129978,1711901497520,-500.0,0.00059999,120]
[321129979,1711901497530,-838.17,0.00059999,120]
[321129980,1711901497539,-721.29,0.00059999,120]
[321129981,1711901497548,-586.0,0.00059999,120]
[321129982,1711901497557,-1795.72,0.00059999,21]
[321129983,1711901497566,-1222.41,0.00059999,120]
[321129984,1711901497576,-589.13,0.00059999,120]
[321129985,1711901497585,-1633.48,0.00059999,120]
[321129986,1711901497595,-500.0,0.00059999,120]
[321129987,1711901497604,-2610.3,0.00059999,120]
[321129988,1711901497617,-957.79,0.00059999,120]
[321129989,1711901497626,-832.75,0.00059999,120]
[321129990,1711901497635,-814.32,0.00059999,120]
[321129991,1711901497645,-500.0,0.00059999,120]
[321129992,1711901497655,-581.07,0.00059999,120]
[321129993,1711901497664,-2279.79,0.00059999,120]
[321129994,1711901497674,-500.0,0.00059999,120]
[321129995,1711901497683,-500.0,0.00059999,120]
[321129996,1711901497694,-1846.66,0.00059999,120]
[321129997,1711901497703,-833.33,0.00059999,120]
[321129998,1711901497713,-5170.47,0.00059999,120]
[321129999,1711901497723,-2760.2,0.00059999,120]
[321130000,1711901497733,-1734.48,0.00059999,120]
[321130001,1711901497742,-8725.15,0.00059999,120]
[321130002,1711901497751,-1268.49,0.00059999,120]
[321130003,1711901497761,-500.0,0.00059999,120]
[321130004,1711901497771,-1226.84,0.00059999,120]
[321130005,1711901497780,-4548.58,0.00059999,120]
[321130006,1711901497790,-1479.87,0.00059999,120]
[321130007,1711901497799,-500.0,0.00059999,120]
[321130008,1711901497808,-1697.5,0.00059999,120]
[321130009,1711901497817,-2334.24,0.00059999,120]
[321130010,1711901497826,-2071.17,0.00059999,120]
[321130011,1711901497836,-500.0,0.00059999,120]
[321130012,1711901497845,-1307.1,0.00059999,120]
[321130013,1711901497854,-2606.99,0.00059999,120]
[321130014,1711901497863,-302.25,0.00059999,120]
[321130015,1711901497872,-1383.62,0.00059999,120]
[321130016,1711901497882,-327.84,0.00059999,120]
[321130017,1711901497891,-3025.45,0.00059999,120]
[321130018,1711901497900,-5933.46,0.00059999,120]
[321130019,1711901497910,-554.92,0.00059999,120]
[321130020,1711901497919,-4835.56,0.00059999,120]
[321130021,1711901497928,-1114.13,0.00059999,120]
[321130022,1711901497938,-1551.31,0.00059999,120]
[321130023,1711901497947,-500.0,0.00059999,120]
[321130024,1711901497957,-500.0,0.00059999,120]
[321130025,1711901497967,-1225.51,0.00059999,120]
[321130026,1711901497976,-500.0,0.00059999,120]
[321130027,1711901497986,-1642.24,0.00059999,120]
[321130028,1711901497995,-1400.86,0.00059999,120]
[321130029,1711901498005,-5107.76,0.00059999,120]
[321130030,1711901498015,-7108.28,0.00059999,120]
[321130031,1711901498024,-548.05,0.00059999,120]
[321130032,1711901498034,-159.95,0.00059999,120]
[321130033,1711901498043,-1267.36,0.00059999,120]
[321130034,1711901498052,-1487.37,0.00059999,120]
[321130035,1711901498062,-977.83,0.00059999,120]
[321130036,1711901498071,-2308.38,0.00059999,120]
[321130037,1711901498081,-1843.78,0.00059999,120]
[321130038,1711901498090,-500.0,0.00059999,120]
[321130039,1711901498100,-500.0,0.00059999,120]
[321130040,1711901498109,-260.90286333,0.00059999,120]
[321130041,1711901498119,-500.0,0.00059999,120]
[321130042,1711901498128,-1933.04,0.00059999,120]
[321130043,1711901498138,-500.0,0.00059999,120]
[321130044,1711901498147,-925.52,0.00059999,120]
[321130045,1711901498156,-4054.58,0.00059999,120]
[321130046,1711901498166,-3182.14,0.00059999,120]
[321130047,1711901498175,-500.0,0.00059999,120]
[321130048,1711901498185,-1284.39,0.00059999,120]
[321130049,1711901498193,-9137.65,0.00059999,120]
[321130050,1711901498202,-731.7,0.00059999,120]
[321130051,1711901498329,-9984.85,0.00059999,120]
[321130052,1711901498339,-505.42,0.00059999,120]
[321130053,1711901498348,-974.58,0.00059999,120]
[321130054,1711901498357,-897.4007763,0.0006,120]
[321130055,1711901498366,-103935.52218313,0.0006,120]
[321130056,1711901498377,-42417.27189224,0.0006,120]
[321130057,1711901498387,-481966.65121381,0.0006,120]
[321130058,1711901498396,-1141.38907819,0.0006,7]
[321130059,1711901498405,-824.15714204,0.0006,120]
[321130060,1711901498415,-2597.27188107,0.0006,120]
[321130061,1711901498424,-999.999999,0.0006,14]
[321130062,1711901498433,-575.55567126,0.0006,90]
[321130063,1711901498443,-9894.08355956,0.0006,120]
[321130064,1711901498453,-3083.87246425,0.0006,7]
[321130065,1711901498462,-1495.10162571,0.0006,7]
[321130066,1711901498472,-1545.73149139,0.0006,120]
[321130067,1711901498482,-155.0,0.0006,60]
[321130068,1711901498492,-386.95784931,0.0006,120]
[321130069,1711901498500,-400.0,0.0006,7]
[321130070,1711901498510,-881.02025278,0.0006,120]
[321130071,1711901498519,-522.57901722,0.0006,30]
[321130072,1711901498529,-66319.72585048,0.0006,120]
[321130073,1711901498539,-1350.0,0.0006,120]
[321130074,1711901498548,-1900.0,0.0006,120]
[321130075,1711901498557,-6078.76240351,0.0006,34]
[321130076,1711901498566,-10000.0,0.0006,4]
[321130077,1711901498576,-156.45889321,0.0006,120]
[321130078,1711901498585,-2500.0,0.0006,120]
[321130079,1711901498594,-314.094546,0.0006,120]
[321130080,1711901498604,-957.0,0.0006,106]
[321130081,1711901498618,-531.0,0.0006,19]
[321130082,1711901498627,-425.0,0.0006,106]
[321130083,1711901498636,-151.0,0.0006,120]
[321130084,1711901498645,-151.28941815,0.0006027,120]
[321130085,1711901498655,-151.28941815,0.0006027,120]
[321130086,1711901498664,-151.28941815,0.0006027,120]
[321130087,1711901498674,-151.28941815,0.0006027,120]
[321130088,1711901498683,-151.28941815,0.0006027,120]
[321130089,1711901498693,-151.28941815,0.0006027,120]
[321130090,1711901498703,-151.28941815,0.0006027,120]
[321130091,1711901498713,-151.28941815,0.0006027,120]
[321130092,1711901498722,-151.28941815,0.0006027,120]
[321130093,1711901498731,-151.28941815,0.0006027,120]
[321130094,1711901498741,-151.28941815,0.0006027,120]
[321130095,1711901498750,-151.28941815,0.0006027,120]
[321130096,1711901498759,-151.28941815,0.0006027,120]
[321130097,1711901498769,-151.28941815,0.0006027,120]
[321130098,1711901498778,-151.28941815,0.0006027,120]
[321130099,1711901498787,-151.28941815,0.0006027,120]
[321130100,1711901498797,-151.28941815,0.0006027,120]
[321130101,1711901498808,-151.28941815,0.0006027,120]
[321130102,1711901498818,-151.78,0.0006027,120]
[321130103,1711901498827,-574.97478898,0.0006027,120]
[321130104,1711901498837,-574.97478898,0.0006027,120]
[321130105,1711901498847,-574.97478898,0.0006027,120]
[321130106,1711901498856,-574.97478898,0.0006027,120]
[321130107,1711901498866,-574.97478898,0.0006027,120]
[321130108,1711901498875,-574.97478898,0.0006027,120]
[321130109,1711901498885,-574.97478898,0.0006027,120]
[321130110,1711901498894,-165.4146484,0.0006027,120]
[321130111,1711901498904,-165.4146484,0.0006027,120]
[321130112,1711901498912,-165.4146484,0.0006027,120]
[321130113,1711901498921,-165.4146484,0.0006027,120]
[321130114,1711901498932,-165.4146484,0.0006027,120]
[321130115,1711901498941,-165.4146484,0.0006027,120]
[321130116,1711901498950,-165.91,0.0006027,120]
[321130117,1711901498959,-231.65550776,0.0006027,120]
[321130118,1711901498968,-231.65550776,0.0006027,120]
[321130119,1711901498978,-231.65550776,0.0006027,120]
[321130120,1711901498987,-231.65550776,0.0006027,120]
[321130121,1711901498996,-231.65550776,0.0006027,120]
[321130122,1711901499006,-231.65550776,0.0006027,120]
[321130123,1711901499016,-231.65550776,0.0006027,120]
[321130124,1711901499027,-156.76272141,0.0006027,120]
[321130125,1711901499037,-156.76272141,0.0006027,120]
[321130126,1711901499047,-157.26,0.0006027,120]
[321130127,1711901499057,-156.88772141,0.0006027,120]
[321130128,1711901499067,-156.88772141,0.0006027,120]
[321130129,1711901499076,-156.88772141,0.0006027,120]
[321130130,1711901499086,-156.88772141,0.0006027,120]
[321130131,1711901499097,-165.12649974,0.0006027,120]
[321130132,1711901499105,-165.12649974,0.0006027,120]
[321130133,1711901499114,-165.12649974,0.0006027,120]
[321130134,1711901499125,-165.12649974,0.0006027,120]
[321130135,1711901499134,-165.12649974,0.0006027,120]
[321130136,1711901499143,-165.12649974,0.0006027,120]
[321130137,1711901499153,-165.62,0.0006027,120]
[321130138,1711901499162,-231.25209964,0.0006027,120]
[321130139,1711901499171,-231.25209964,0.0006027,120]
[321130140,1711901499181,-231.25209964,0.0006027,120]
[321130141,1711901499190,-231.25209964,0.0006027,120]
[321130142,1711901499199,-231.25209964,0.0006027,120]
[321130143,1711901499208,-231.25209964,0.0006027,120]
[321130144,1711901499217,-231.25209964,0.0006027,120]
[321130145,1711901499227,-3540.74271811,0.00060273,120]
[321130146,1711901499236,-1474.18,0.00060273,120]
[321130147,1711901499247,-556.04,0.00060273,120]
[321130148,1711901499257,-956.39,0.00060273,120]
[321130149,1711901499268,-882.73,0.00060273,120]
[321130150,1711901499277,-859.93,0.00060273,120]
[321130151,1711901499287,-737.17,0.00060273,120]
[321130152,1711901499296,-759.11,0.00060273,120]
[321130153,1711901499306,-589.32,0.00060273,120]
[321130154,1711901499316,-880.58,0.00060273,120]
[321130155,1711901499326,-500.0,0.00060273,120]
[321130156,1711901499336,-500.0,0.00060273,120]
[321130157,1711901499345,-500.0,0.00060273,120]
[321130158,1711901499355,-500.0,0.00060273,120]
[321130159,1711901499365,-500.0,0.00060273,120]
[321130160,1711901499375,-517.83175545,0.00060273,120]
[321130161,1711901499384,-509.81,0.00060273,120]
[321130162,1711901499393,-2000.0,0.00060273,120]
[321130163,1711901499403,-500.0,0.00060273,120]
[321130164,1711901499412,-500.0,0.00060273,120]
[321130165,1711901499422,-583.26,0.00060273,120]
[321130166,1711901499431,-502.35,0.00060273,120]
[321130167,1711901499441,-666.0,0.00060273,120]
[321130168,1711901499450,-429.34526889,0.00060273,120]
[321130169,1711901499460,-513.68,0.00060273,120]
[321130170,1711901499469,-780.08,0.00060273,120]
[321130171,1711901499479,-500.0,0.00060273,120]
[321130172,1711901499488,-556.18,0.00060273,120]
[321130173,1711901499498,-860.04,0.00060273,120]
[321130174,1711901499508,-500.0,0.00060273,120]
[321130175,1711901499516,-838.17,0.00060273,120]
[321130176,1711901499526,-721.29,0.00060273,120]
[321130177,1711901499535,-586.0,0.00060273,120]
[321130178,1711901499544,-1795.72,0.00060273,21]
[321130179,1711901499553,-1222.41,0.00060273,120]
[321130180,1711901499562,-589.13,0.00060273,120]
[321130181,1711901499572,-1633.48,0.00060273,120]
[321130182,1711901499581,-500.0,0.00060273,120]
[321130183,1711901499591,-2610.3,0.00060273,120]
[321130184,1711901499600,-957.79,0.00060273,120]
[321130185,1711901499610,-832.75,0.00060273,120]
[321130186,1711901499621,-814.32,0.00060273,120]
[321130187,1711901499630,-581.07,0.00060273,120]
[321130188,1711901499639,-2279.79,0.00060273,120]
[321130189,1711901499649,-500.0,0.00060273,120]
[321130190,1711901499658,-500.0,0.00060273,120]
[321130191,1711901499667,-1846.66,0.00060273,120]
[321130192,1711901499677,-833.33,0.00060273,120]
[321130193,1711901499686,-5170.47,0.00060273,120]
[321130194,1711901499697,-2760.2,0.00060273,120]
[321130195,1711901499706,-1734.48,0.00060273,120]
[321130196,1711901499715,-8725.15,0.00060273,120]
[321130197,1711901499725,-1268.49,0.00060273,120]
[321130198,1711901499734,-500.0,0.00060273,120]
[321130199,1711901499744,-1226.84,0.00060273,120]
[321130200,1711901499753,-4548.58,0.00060273,120]
[321130201,1711901499762,-1479.87,0.00060273,120]
[321130202,1711901499771,-500.0,0.00060273,120]
[321130203,1711901499781,-1697.5,0.00060273,120]
[321130204,1711901499790,-2334.24,0.00060273,120]
[321130205,1711901499799,-2071.17,0.00060273,120]
[321130206,1711901499808,-500.0,0.00060273,120]
[321130207,1711901499817,-1307.1,0.00060273,120]
[321130208,1711901499826,-2606.99,0.00060273,120]
[321130209,1711901499836,-1383.62,0.00060273,120]
[321130210,1711901499845,-3025.45,0.00060273,120]
[321130211,1711901499854,-5933.46,0.00060273,120]
[321130212,1711901499863,-554.92,0.00060273,120]
[321130213,1711901499872,-4835.56,0.00060273,120]
[321130214,1711901499882,-1114.13,0.00060273,120]
[321130215,1711901499890,-1551.31,0.00060273,120]
[321130216,1711901499899,-187.82847423,0.00060273,120]
[321130217,1711901499908,-500.0,0.00060273,120]
[321130218,1711901499917,-1225.51,0.00060273,120]
[321130219,1711901499926,-500.0,0.00060273,120]
[321130220,1711901499935,-1642.24,0.00060273,120]
[321130221,1711901499945,-1400.86,0.00060273,120]
[321130222,1711901499954,-5107.76,0.00060273,120]
[321130223,1711901499963,-7108.28,0.00060273,120]
[321130224,1711901499975,-1267.36,0.00060273,120]
[321130225,1711901499984,-1487.37,0.00060273,120]
[321130226,1711901499993,-977.83,0.00060273,120]
[321130227,1711901500002,-2308.38,0.00060273,120]
[321130228,1711901500011,-1843.78,0.00060273,120]
[321130229,1711901500021,-500.0,0.00060273,120]
[321130230,1711901500030,-576.21,0.00060273,120]
[321130231,1711901500039,-500.0,0.00060273,120]
[321130232,1711901500049,-1933.04,0.00060273,120]
[321130233,1711901500058,-500.0,0.00060273,120]
[321130234,1711901500067,-925.52,0.00060273,120]
[321130235,1711901500076,-4054.58,0.00060273,120]
[321130236,1711901500085,-3182.14,0.00060273,120]
[321130237,1711901500095,-590.69,0.00060273,120]
[321130238,1711901500214,-1284.39,0.00060273,120]
[321130239,1711901500225,-9137.65,0.00060273,120]
[321130240,1711901500235,-731.7,0.00060273,120]
[321130241,1711901500245,-9984.85,0.00060273,120]
[321130242,1711901500254,-505.42,0.00060273,120]
[321130243,1711901500264,-974.58,0.00060273,120]
[321130244,1711901500273,-12262.2588494,0.00060292,20]
[321130245,1711901500282,-493.0,0.000603,30]
[321130246,1711901500291,-693.0,0.000603,30]
[321130247,1711901500300,-1000.0,0.000603,30]
[321130248,1711901500309,-155.5561422,0.0006048,120]
[321130249,1711901500318,-167.81541102,0.00060491,120]
[321130250,1711901500328,-574.97478898,0.00060515,120]
[321130251,1711901500338,-231.65550776,0.00060515,120]
[321130252,1711901500348,-231.25209964,0.00060515,120]
[321130253,1711901500357,-1474.18,0.00060547,120]
[321130254,1711901500366,-556.04,0.00060547,120]
[321130255,1711901500376,-956.39,0.00060547,120]
[321130256,1711901500384,-882.73,0.00060547,120]
[321130257,1711901500394,-859.93,0.00060547,120]
[321130258,1711901500402,-737.17,0.00060547,120]
[321130259,1711901500412,-759.11,0.00060547,120]
[321130260,1711901500421,-880.58,0.00060547,120]
[321130261,1711901500430,-509.81,0.00060547,120]
[321130262,1711901500439,-500.0,0.00060547,120]
[321130263,1711901500448,-500.0,0.00060547,120]
[321130264,1711901500458,-583.26,0.00060547,120]
[321130265,1711901500467,-502.35,0.00060547,120]
[321130266,1711901500476,-780.08,0.00060547,120]
[321130267,1711901500485,-250.75,0.00060547,120]
[321130268,1711901500495,-860.04,0.00060547,120]
[321130269,1711901500504,-505.15,0.00060547,120]
[321130270,1711901500513,-838.17,0.00060547,120]
[321130271,1711901500522,-721.29,0.00060547,120]
[321130272,1711901500533,-586.0,0.00060547,120]
[321130273,1711901500544,-1795.72,0.00060547,21]
[321130274,1711901500553,-1222.41,0.00060547,120]
[321130275,1711901500562,-589.13,0.00060547,120]
[321130276,1711901500572,-1633.48,0.00060547,120]
[321130277,1711901500581,-528.55121188,0.00060547,120]
[321130278,1711901500590,-2610.3,0.00060547,120]
[321130279,1711901500599,-957.79,0.00060547,120]
[321130280,1711901500612,-832.75,0.00060547,120]
[321130281,1711901500623,-814.32,0.00060547,120]
[321130282,1711901500634,-581.07,0.00060547,120]
[321130283,1711901500645,-2279.79,0.00060547,120]
[321130284,1711901500655,-500.0,0.00060547,120]
[321130285,1711901500664,-500.0,0.00060547,120]
[321130286,1711901500674,-1846.66,0.00060547,120]
[321130287,1711901500683,-833.33,0.00060547,120]
[321130288,1711901500696,-5170.47,0.00060547,120]
[321130289,1711901500706,-2760.2,0.00060547,120]
[321130290,1711901500716,-1734.48,0.00060547,120]
[321130291,1711901500726,-8725.15,0.00060547,120]
[321130292,1711901500736,-1268.49,0.00060547,120]
[321130293,1711901500746,-500.0,0.00060547,120]
[321130294,1711901500755,-1226.84,0.00060547,120]
[321130295,1711901500765,-4548.58,0.00060547,120]
[321130296,1711901500774,-1479.87,0.00060547,120]
[321130297,1711901500783,-638.4,0.00060547,120]
[321130298,1711901500792,-1697.5,0.00060547,120]
[321130299,1711901500801,-2334.24,0.00060547,120]
[321130300,1711901500810,-2071.17,0.00060547,120]
[321130301,1711901500819,-500.0,0.00060547,120]
[321130302,1711901500828,-1307.1,0.00060547,120]
[321130303,1711901500837,-2606.99,0.00060547,120]
[321130304,1711901500846,-1383.62,0.00060547,120]
[321130305,1711901500856,-3025.45,0.00060547,120]
[321130306,1711901500866,-5933.46,0.00060547,120]
[321130307,1711901500875,-554.92,0.00060547,120]
[321130308,1711901500884,-4835.56,0.00060547,120]
[321130309,1711901500893,-1114.13,0.00060547,120]
[321130310,1711901500903,-1551.31,0.00060547,120]
[321130311,1711901500912,-1225.51,0.00060547,120]
[321130312,1711901500921,-500.0,0.00060547,120]
[321130313,1711901500930,-500.0,0.00060547,120]
[321130314,1711901500940,-1642.24,0.00060547,120]
[321130315,1711901500949,-1400.86,0.00060547,120]
[321130316,1711901500959,-5107.76,0.00060547,120]
[321130317,1711901500969,-7108.28,0.00060547,120]
[321130318,1711901500978,-1267.36,0.00060547,120]
[321130319,1711901500989,-1487.37,0.00060547,120]
[321130320,1711901500998,-977.83,0.00060547,120]
[321130321,1711901501010,-2308.38,0.00060547,120]
[321130322,1711901501031,-1843.78,0.00060547,120]
[321130323,1711901501046,-500.0,0.00060547,120]
[321130324,1711901501063,-500.0,0.00060547,120]
[321130325,1711901501082,-1933.04,0.00060547,120]
[321130326,1711901501096,-500.0,0.00060547,120]
[321130327,1711901501112,-925.52,0.00060547,120]
[321130328,1711901501130,-4054.58,0.00060547,120]
[321130329,1711901501143,-3182.14,0.00060547,120]
[321130330,1711901501163,-1284.39,0.00060547,120]
[321130331,1711901501180,-9137.65,0.00060547,120]
[321130332,1711901501194,-731.7,0.00060547,120]
[321130333,1711901501214,-9984.85,0.00060547,120]
[321130334,1711901501231,-505.42,0.00060547,120]
[321130335,1711901501243,-974.58,0.00060547,120]
[321130336,1711901501258,-151.0,0.00060603,120]
[321130337,1711901501274,-156.88772141,0.00060681,120]
[321130338,1711901501287,-999.0,0.00060775,120]
[321130339,1711901501304,-1474.18,0.00060821,120]
[321130340,1711901501320,-314.094546,0.00060821,120]
[321130341,1711901501335,-556.04,0.00060821,120]
[321130342,1711901501349,-956.39,0.00060821,120]
[321130343,1711901501367,-882.73,0.00060821,120]
[321130344,1711901501382,-859.93,0.00060821,120]
[321130345,1711901501397,-737.17,0.00060821,120]
[321130346,1711901501411,-759.11,0.00060821,120]
[321130347,1711901501427,-880.58,0.00060821,120]
[321130348,1711901501442,-509.81,0.00060821,120]
[321130349,1711901501456,-641.17558952,0.00060821,120]
[321130350,1711901501471,-500.0,0.00060821,120]
[321130351,1711901501484,-583.26,0.00060821,120]
[321130352,1711901501499,-502.35,0.00060821,120]
[321130353,1711901501513,-780.08,0.00060821,120]
[321130354,1711901501527,-860.04,0.00060821,120]
[321130355,1711901501541,-838.17,0.00060821,120]
[321130356,1711901501555,-721.29,0.00060821,120]
[321130357,1711901501568,-586.0,0.00060821,120]
[321130358,1711901501582,-1795.72,0.00060821,21]
[321130359,1711901501596,-1222.41,0.00060821,120]
[321130360,1711901501611,-589.13,0.00060821,120]
[321130361,1711901501626,-1633.48,0.00060821,120]
[321130362,1711901501641,-2610.3,0.00060821,120]
[321130363,1711901501655,-957.79,0.00060821,120]
[321130364,1711901501669,-832.75,0.00060821,120]
[321130365,1711901501683,-814.32,0.00060821,120]
[321130366,1711901501699,-581.07,0.00060821,120]
[321130367,1711901501712,-2279.79,0.00060821,120]
[321130368,1711901501726,-589.1240055,0.00060821,120]
[321130369,1711901501741,-419.33,0.00060821,120]
[321130370,1711901501755,-1846.66,0.00060821,120]
[321130371,1711901501770,-833.33,0.00060821,120]
[321130372,1711901501786,-5170.47,0.00060821,120]
[321130373,1711901501800,-2760.2,0.00060821,120]
[321130374,1711901501815,-1734.48,0.00060821,120]
[321130375,1711901501830,-8725.15,0.00060821,120]
[321130376,1711901501844,-1268.49,0.00060821,120]
[321130377,1711901501860,-395.73,0.00060821,120]
[321130378,1711901501874,-1226.84,0.00060821,120]
[321130379,1711901501888,-4548.58,0.00060821,120]
[321130380,1711901501903,-1479.87,0.00060821,120]
[321130381,1711901501918,-1697.5,0.00060821,120]
[321130382,1711901501932,-2334.24,0.00060821,120]
[321130383,1711901501947,-2071.17,0.00060821,120]
[321130384,1711901501962,-500.0,0.00060821,120]
[321130385,1711901501975,-1307.1,0.00060821,120]
[321130386,1711901501990,-2606.99,0.00060821,120]
[321130387,1711901502004,-1383.62,0.00060821,120]
[321130388,1711901502018,-3025.45,0.00060821,120]
[321130389,1711901502033,-5933.46,0.00060821,120]
[321130390,1711901502048,-554.92,0.00060821,120]
[321130391,1711901502063,-4835.56,0.00060821,120]
[321130392,1711901502077,-1114.13,0.00060821,120]
[321130393,1711901502091,-1551.31,0.00060821,120]
[321130394,1711901502106,-1225.51,0.00060821,120]
[321130395,1711901502121,-588.21,0.00060821,120]
[321130396,1711901502136,-500.0,0.00060821,120]
[321130397,1711901502149,-1642.24,0.00060821,120]
[321130398,1711901502163,-1400.86,0.00060821,120]
[321130399,1711901502179,-5107.76,0.00060821,120]
[321130400,1711901502194,-7108.28,0.00060821,120]
[321130401,1711901502208,-1267.36,0.00060821,120]
[321130402,1711901502223,-1487.37,0.00060821,120]
[321130403,1711901502237,-977.83,0.00060821,120]